bitfinex/quotes_ETHUSD_20241130
["timestamp","ask_amount","ask_price","bid_price","bid_amount"]
[1732958747450,1.6329,3688.1,3688.0,2.71149]
[1732958747863,1.6329,3688.1,3687.8,2.71161]
[1732958748031,1.6329,3688.1,3687.9,2.71154]
[1732958748846,3.64382814,3688.3,3687.9,2.71154]
[1732958749028,3.24318322,3688.6,3687.3,2.71195]
[1732958749029,1.5745,3688.5,3688.4,2.71117]
[1732958749339,0.32257793,3688.9,3688.6,2.71101]
[1732958749340,1.5745,3688.9,3688.6,2.71101]
[1732958750973,1.5745,3688.9,3688.5,2.71111]
[1732958751980,2.12414408,3689.2,3688.8,2.71084]
[1732958752636,1.5745,3689.2,3688.9,2.71083]
[1732958753070,1.5745,3689.2,3688.7,2.71094]
[1732958753771,1.5745,3689.2,3688.9,2.71077]
[1732958753933,1.5745,3689.2,3688.9,2.7108]
[1732958754756,1.5745,3689.2,3688.5,2.71112]
[1732958754962,4.44262,3689.2,3688.5,2.71112]
[1732958755266,4.44262,3689.2,3688.1,1.1135]
[1732958755267,1.73195,3689.2,3688.1,1.1135]
[1732958755467,1.73195,3689.2,3688.7,2.71096]
[1732958755854,0.03388561,3689.1,3688.5,2.71108]
[1732958756176,0.03388561,3689.1,3688.6,2.71104]
[1732958756376,1.5745,3689.2,3688.5,2.7111]
[1732958756538,1.5745,3689.2,3688.6,2.71101]
[1732958756950,4.28512,3689.2,3688.4,2.71115]
[1732958757271,4.28512,3689.2,3688.3,2.71126]
[1732958757272,4.28512,3689.2,3688.5,2.71112]
[1732958757782,1.5745,3689.0,3688.5,2.71106]
[1732958758073,1.5745,3689.0,3688.3,2.71126]
[1732958758230,1.5745,3689.0,3688.5,2.71109]
[1732958759470,1.5745,3689.0,3688.3,2.71126]
[1732958759973,1.5745,3689.0,3688.5,2.71111]
[1732958760400,1.5745,3689.0,3688.3,2.71126]
[1732958760605,1.5745,3689.0,3688.4,2.71118]
[1732958761399,1.5745,3689.3,3688.7,2.71092]
[1732958761603,1.5745,3689.3,3688.8,2.71089]
[1732958762191,4.28505,3689.3,3688.1,1.1135]
[1732958762500,4.28504,3689.3,3688.7,2.71096]
[1732958762707,2.71069,3689.1,3688.3,2.71126]
[1732958762888,2.71088,3688.9,3688.2,2.71133]
[1732958763092,1.5745,3689.0,3688.1,1.1135]
[1732958763515,1.5745,3689.0,3688.3,2.71126]
[1732958763691,2.71085,3688.9,3688.0,2.71148]
[1732958763865,0.66935612,3688.8,3687.9,2.71157]
[1732958764179,0.66935612,3688.8,3688.1,2.71141]
[1732958764379,0.66935612,3688.8,3687.8,1.1135]
[1732958764594,0.66935612,3688.8,3688.2,2.71132]
[1732958764917,1.5745,3688.6,3687.9,2.71156]
[1732958765097,0.35016927,3688.5,3687.7,2.71171]
[1732958765407,1.5745,3688.3,3687.7,2.71171]
[1732958765708,1.5745,3688.3,3687.5,2.71184]
[1732958765709,0.03389404,3688.2,3687.5,2.71184]
[1732958766405,0.03389404,3688.2,3687.6,2.71177]
[1732958767167,1.5745,3687.8,3686.8,1.1135]
[1732958767468,1.5745,3687.8,3687.4,2.71191]
[1732958767664,4.2862,3687.8,3687.0,2.7122]
[1732958767894,2.74565938,3687.7,3687.0,2.7122]
[1732958768297,0.03389938,3687.7,3687.0,2.7122]
[1732958768481,1.5745,3687.8,3687.0,2.7122]
[1732958768482,1.5745,3687.8,3687.2,2.71201]
[1732958768703,0.63546781,3687.7,3687.2,2.71201]
[1732958769795,0.63546781,3687.7,3687.3,0.55]
[1732958770212,1.5745,3687.8,3687.5,0.55]
[1732958770521,1.615,3688.2,3687.8,0.55]
[1732958770821,2.71142,3688.1,3687.6,0.55]
[1732958771123,2.71142,3688.1,3686.7,2.71241]
[1732958771124,4.32681,3687.6,3686.7,2.71241]
[1732958771421,4.32681,3687.6,3686.9,2.7123]
[1732958771582,4.32681,3687.6,3686.7,2.71242]
[1732958771782,2.06932814,3687.5,3686.7,2.71242]
[1732958772023,1.615,3687.2,3686.4,2.71266]
[1732958772322,0.03390446,3687.1,3686.6,2.71249]
[1732958772504,0.03390446,3687.1,3686.7,2.71243]
[1732958773337,1.615,3687.2,3686.6,2.71252]
[1732958773483,1.615,3687.2,3686.7,0.55]
[1732958774012,0.03390445,3687.1,3686.7,0.55]
[1732958775489,0.03390444,3687.1,3686.7,0.55]
[1732958776124,0.03390444,3687.1,3686.3,2.71273]
[1732958776125,0.03390444,3687.1,3686.4,3.26262]
[1732958776830,1.6603,3687.0,3686.4,3.26262]
[1732958776995,4.37256,3687.0,3686.2,2.71274]
[1732958777187,4.37256,3687.0,3686.2,2.7128]
[1732958778020,2.71231,3686.9,3686.2,2.7128]
[1732958778413,1.6603,3687.0,3686.3,2.71272]
[1732958778601,1.6603,3687.0,3686.4,0.55]
[1732958779002,4.37253,3687.0,3686.4,0.55]
[1732958780584,0.03390684,3686.9,3686.4,0.55]
[1732958780915,2.71232,3686.9,3686.4,0.55]
[1732958781120,1.6603,3686.7,3686.2,0.55]
[1732958781423,1.6603,3686.7,3685.1,3.43654509]
[1732958781424,1.6603,3686.7,3686.0,2.71294]
[1732958781582,1.6603,3686.7,3686.1,0.55]
[1732958781583,4.37275,3686.7,3686.1,0.55]
[1732958781783,2.71253,3686.6,3686.1,0.55]
[1732958782220,2.71253,3686.6,3686.0,2.71294]
[1732958782221,4.40685969,3686.5,3685.9,0.55]
[1732958782399,2.71267,3686.4,3685.9,0.55]
[1732958782941,2.71267,3686.4,3685.7,0.55]
[1732958783098,1.6603,3686.3,3685.1,1.39532295]
[1732958783432,2.71301,3686.0,3685.1,0.28182295]
[1732958783658,2.71301,3686.0,3684.3,8.42492614]
[1732958783659,1.6603,3685.6,3684.8,2.71384]
[1732958783939,1.6603,3685.6,3684.6,1.1135]
[1732958783940,1.6603,3685.6,3685.1,2.71361]
[1732958784444,1.6603,3685.6,3685.2,2.71349]
[1732958784796,1.6603,3685.6,3685.0,2.7137]
[1732958785025,1.6603,3685.6,3685.4,0.55]
[1732958786842,2.71356,3685.2,3684.5,2.71406]
[1732958786994,1.6603,3684.9,3683.5,0.1197994]
[1732958787201,1.6603,3684.7,3684.0,2.7144]
[1732958788109,1.6603,3684.7,3683.8,2.71458]
[1732958788295,1.6603,3684.7,3684.2,0.55]
[1732958789838,0.03392887,3684.6,3684.0,0.55]
[1732958790147,0.47474576,3684.6,3684.0,0.55]
[1732958790300,0.47474576,3684.6,3684.0,3.26442]
[1732958790498,0.47474576,3684.6,3684.1,3.26435]
[1732958790809,1.6603,3684.7,3684.4,0.55]
[1732958791328,1.6603,3684.7,3684.6,0.55]
[1732958791838,1.6603,3684.7,3684.6,3.26399]
[1732958792231,2.71348,3685.3,3683.9,1.1135]
[1732958792232,4.3735055,3685.3,3684.7,0.55]
[1732958792408,4.33958,3685.3,3684.7,0.55]
[1732958792609,0.0339242,3685.2,3684.6,3.26399]
[1732958792831,0.03392421,3685.2,3684.8,0.55]
[1732958793032,2.74749421,3685.2,3684.8,0.55]
[1732958793195,2.74749421,3685.2,3684.6,0.55]
[1732958793601,0.03392423,3685.1,3684.6,3.26398]
[1732958793800,0.67820747,3685.1,3684.4,3.26411]
[1732958794014,0.64428324,3685.1,3684.4,0.55]
[1732958795109,1.6491,3685.0,3684.5,2.71405]
[1732958795419,1.6491,3685.0,3684.3,3.26418]
[1732958795803,1.6491,3685.0,3684.5,0.55]
[1732958796002,0.30746176,3684.9,3684.5,0.55]
[1732958796233,0.30746176,3684.9,3684.4,0.55]
[1732958796840,0.30746176,3684.9,3684.4,2.71409]
[1732958797019,0.30746176,3684.9,3684.5,0.55]
[1732958797218,0.30746176,3684.9,3684.5,3.26406]
[1732958798677,1.84475618,3684.8,3684.5,0.55]
[1732958798835,1.84475618,3684.8,3684.4,0.55]
[1732958799273,1.84475618,3684.8,3684.4,3.26412]
[1732958799570,1.6491,3684.8,3684.6,0.55]
[1732958801163,1.6491,3684.8,3684.3,3.26416]
[1732958801348,1.6491,3684.8,3684.3,0.55]
[1732958801553,1.6491,3684.8,3684.1,0.55]
[1732958802577,1.6491,3684.8,3684.3,0.55]
[1732958804557,4.36296,3684.8,3684.1,0.55]
[1732958804758,4.36296,3684.8,3684.1,3.26436]
[1732958805477,4.36296,3684.8,3684.3,0.55]
[1732958806169,4.36296,3684.8,3684.0,3.26439]
[1732958806870,4.36296,3684.8,3684.2,0.55]
[1732958809077,4.36296,3684.8,3684.2,2.71427]
[1732958809236,4.36296,3684.8,3684.0,0.55]
[1732958810140,1.6062,3684.7,3684.1,2.71431]
[1732958810340,1.6062,3684.7,3684.3,0.55]
[1732958810680,1.6062,3684.7,3684.3,3.2642]
[1732958810851,1.6062,3684.7,3684.4,2.71413]
[1732958811175,1.6062,3684.7,3684.3,0.55]
[1732958811334,1.6062,3684.7,3684.3,3.2642]
[1732958812074,0.25195206,3684.6,3684.2,3.26427]
[1732958812275,1.6062,3684.7,3684.2,3.26427]
[1732958812443,0.2521499,3684.6,3684.2,3.26427]
[1732958812644,0.2521499,3684.5,3684.2,3.26427]
[1732958812840,4.32012,3684.7,3684.2,0.55]
[1732958813044,4.86480325,3684.7,3684.2,0.55]
[1732958813293,0.40340477,3684.6,3684.2,0.55]
[1732958813457,4.86480325,3684.7,3684.2,0.55]
[1732958813636,0.40359444,3684.6,3684.2,0.55]
[1732958813842,4.86480325,3684.7,3684.2,0.55]
[1732958814255,2.15088325,3684.7,3684.2,3.26429]
[1732958814443,4.86480325,3684.7,3684.2,0.55]
[1732958814869,4.86480325,3684.7,3684.0,2.71438]
[1732958815040,0.40364388,3684.6,3684.1,0.55]
[1732958815368,4.86480325,3684.7,3684.2,0.55]
[1732958815686,0.40382342,3684.6,3684.2,0.55]
[1732958815883,4.86480325,3684.7,3684.2,0.55]
[1732958816050,0.40382845,3684.6,3684.2,0.55]
[1732958816245,4.86480325,3684.7,3684.2,0.55]
[1732958816481,0.40381759,3684.6,3684.2,0.55]
[1732958816786,4.86480325,3684.7,3684.2,0.55]
[1732958816948,0.4040866,3684.6,3684.2,0.55]
[1732958817145,4.86480325,3684.7,3684.2,0.55]
[1732958817489,0.40429632,3684.6,3684.2,0.55]
[1732958817698,0.40429632,3684.5,3684.2,0.55]
[1732958817849,4.86480325,3684.7,3684.2,0.55]
[1732958818045,0.40439662,3684.6,3684.2,0.55]
[1732958818378,0.40439662,3684.5,3684.2,0.55]
[1732958818581,4.86480325,3684.7,3684.2,0.55]
[1732958818759,0.40451428,3684.6,3684.2,0.55]
[1732958818961,0.40451428,3684.5,3684.2,0.55]
[1732958819169,2.71401,3684.6,3684.0,0.55]
[1732958819516,0.40449277,3684.5,3684.0,0.55]
[1732958819677,2.71401,3684.6,3684.0,0.55]
[1732958819878,0.40449471,3684.5,3684.0,0.55]
[1732958820196,2.71401,3684.6,3684.0,0.55]
[1732958820428,0.03392871,3684.4,3684.0,0.55]
[1732958820881,2.71401,3684.6,3684.0,0.55]
[1732958821085,0.43828193,3684.5,3684.0,0.55]
[1732958821291,0.03392871,3684.5,3684.0,0.55]
[1732958822042,0.03392871,3684.5,3684.1,0.55]
[1732958822247,2.71401,3684.6,3684.1,0.55]
[1732958823289,2.01040451,3684.5,3683.7,2.71466]
[1732958823584,0.03393136,3684.4,3683.7,2.71466]
[1732958823986,0.03393136,3684.4,3683.5,2.8345894]
[1732958824230,2.7143,3684.2,3683.5,0.1197994]
[1732958824389,2.71434,3684.2,3683.5,0.1197994]
[1732958824574,0.40414137,3684.3,3683.5,0.51462334]
[1732958824782,0.25259516,3684.2,3683.9,2.71446]
[1732958824970,1.6062,3684.5,3683.9,2.71446]
[1732958825152,0.25259868,3684.4,3683.9,2.71446]
[1732958825352,0.25259868,3684.3,3684.0,0.55]
[1732958825589,1.6062,3684.5,3684.0,2.71442]
[1732958825788,0.25261285,3684.4,3684.0,2.71442]
[1732958825979,0.25261285,3684.3,3684.0,2.71442]
[1732958826178,1.6062,3684.5,3683.8,1.6635]
[1732958826381,1.6062,3684.5,3684.3,0.55]
[1732958826577,1.6062,3684.5,3684.3,3.26419]
[1732958826779,2.06932814,3684.4,3683.4,1.1135]
[1732958826981,2.06932814,3684.4,3681.2,2.71647]
[1732958826982,1.6062,3683.8,3683.1,1.1135]
[1732958827354,1.6062,3683.8,3683.2,2.71502]
[1732958827554,0.25250076,3683.7,3683.5,2.8345994]
[1732958827768,2.71446,3684.0,3683.5,0.1197994]
[1732958827977,0.25250771,3683.9,3683.5,0.1197994]
[1732958828174,0.25250771,3683.8,3683.5,0.1197994]
[1732958828411,2.01021646,3684.1,3683.6,0.55]
[1732958828701,2.01021646,3684.1,3683.8,3.26453]
[1732958828702,0.25247201,3684.0,3683.8,3.26453]
[1732958828910,1.6062,3684.1,3683.9,2.71451]
[1732958829278,1.6062,3684.1,3684.0,0.55]
[1732958829506,1.85866991,3684.1,3684.0,3.26444]
[1732958829671,1.6528,3684.4,3684.0,3.26444]
[1732958829866,0.25248474,3684.3,3684.0,3.26444]
[1732958830175,0.25247083,3684.2,3684.0,3.26444]
[1732958830510,0.40395332,3684.5,3684.0,1.259252]
[1732958830671,3.72212814,3684.7,3684.4,2.71414]
[1732958831009,0.25250613,3684.6,3684.4,2.71414]
[1732958831163,3.72212814,3684.7,3684.4,2.71414]
[1732958831510,0.25250853,3684.6,3684.4,2.71414]
[1732958831665,3.72212814,3684.7,3684.3,2.7142]
[1732958831863,0.25253203,3684.6,3684.4,2.71413]
[1732958832112,2.71376,3685.0,3684.4,2.71413]
[1732958832113,2.18375662,3685.0,3684.6,2.71399]
[1732958832268,0.25253792,3684.9,3684.6,2.71399]
[1732958832569,2.06932814,3685.1,3684.7,3.26392]
[1732958832570,0.25253792,3684.8,3684.7,3.26392]
[1732958832771,3.13400471,3685.7,3685.3,2.71347]
[1732958832772,0.40406067,3685.6,3685.3,2.71347]
[1732958833015,0.65663328,3685.5,3685.1,2.71357]
[1732958833214,0.25257261,3685.4,3685.2,2.71351]
[1732958833410,3.72212814,3685.7,3685.2,2.71351]
[1732958833704,0.25246612,3685.6,3685.3,2.71347]
[1732958833908,3.72212814,3685.7,3685.3,2.71347]
[1732958834066,3.72212814,3685.7,3685.0,2.71366]
[1732958834067,0.25245571,3685.6,3685.1,2.71358]
[1732958834263,0.25245571,3685.5,3685.1,2.71358]
[1732958834464,3.72212814,3685.7,3685.1,2.71358]
[1732958834702,0.25237625,3685.6,3685.1,2.71358]
[1732958834903,0.25237625,3685.5,3685.1,2.71358]
[1732958835107,3.72212814,3685.7,3685.1,2.71358]
[1732958835291,0.25237578,3685.6,3685.1,2.71358]
[1732958835513,0.25230433,3685.5,3685.1,2.71358]
[1732958835712,3.72212814,3685.7,3685.1,2.71358]
[1732958836035,3.72212814,3685.7,3685.3,2.71347]
[1732958836741,3.72212814,3685.7,3685.4,2.71338]
[1732958837029,2.06932814,3685.7,3685.5,2.71331]
[1732958837339,2.06932814,3685.7,3685.2,0.55]
[1732958838034,2.06932814,3685.7,3685.4,2.7134]
[1732958838492,2.06932814,3685.7,3685.6,2.71326]
[1732958840938,2.06932814,3685.7,3685.3,0.55]
[1732958841309,2.06932814,3685.7,3685.5,2.71332]
[1732958842401,2.06932814,3685.7,3685.5,5.42664]
[1732958842601,2.06932814,3685.7,3685.5,2.71332]
[1732958845139,2.06932814,3685.7,3685.0,0.55]
[1732958845333,2.06932814,3685.7,3685.5,2.71328]
[1732958846448,2.06932814,3685.7,3685.3,2.71346]
[1732958846612,0.03391848,3685.6,3685.3,2.71346]
[1732958847356,1.6528,3685.5,3685.0,2.71367]
[1732958847516,1.6528,3685.5,3685.1,2.71357]
[1732958848274,0.03392073,3685.4,3685.1,2.71357]
[1732958848757,1.6528,3685.5,3685.2,2.71355]
[1732958848959,2.06932814,3685.7,3685.3,2.71343]
[1732958849171,2.06932814,3685.7,3685.4,2.71335]
[1732958851327,2.06932814,3685.7,3685.4,2.71334]
[1732958851554,2.06932814,3685.7,3685.5,2.71328]
[1732958851751,1.6528,3685.9,3685.6,2.71326]
[1732958852073,1.5532,3686.4,3686.0,2.71296]
[1732958852373,1.5532,3686.7,3686.4,2.71267]
[1732958852583,4.02530533,3687.3,3686.1,2.71289]
[1732958852726,2.06932814,3687.3,3687.2,2.71208]
[1732958854065,2.06932814,3687.3,3687.0,5.42444]
[1732958854342,0.03390253,3687.2,3687.0,2.71222]
[1732958854498,0.03390253,3687.2,3686.7,3.82588]
[1732958854792,0.03390253,3687.2,3686.7,1.1135]
[1732958854999,2.06932814,3687.3,3687.0,2.71216]
[1732958855152,0.03390253,3687.2,3686.8,2.71235]
[1732958855353,2.06932814,3687.3,3686.3,1.1135]
[1732958855662,2.06932814,3687.3,3686.8,2.71232]
[1732958856190,2.06932814,3687.3,3687.1,2.71214]
[1732958856387,2.06932814,3687.3,3687.2,2.71208]
[1732958857456,1.5532,3687.6,3687.3,2.71194]
[1732958857781,1.58709959,3687.6,3687.3,2.71194]
[1732958858596,1.5532,3687.6,3687.3,2.71194]
[1732958858891,2.06932814,3687.7,3687.4,2.71193]
[1732958859596,2.06932814,3687.7,3687.5,2.71181]
[1732958860280,2.06932814,3687.7,3687.2,2.71207]
[1732958860450,2.06932814,3687.7,3687.4,2.71191]
[1732958860858,2.06932814,3687.7,3687.2,2.71207]
[1732958861202,2.06932814,3687.7,3687.0,3.82573]
[1732958861203,1.58710043,3687.6,3687.0,2.71223]
[1732958861355,2.06932814,3687.5,3687.1,2.71215]
[1732958863176,2.06932814,3687.5,3687.3,2.71199]
[1732958863787,2.06932814,3687.5,3687.0,2.71218]
[1732958863973,2.06932814,3687.5,3686.8,2.71234]
[1732958864170,2.1032313,3687.5,3687.0,2.71221]
[1732958864501,4.8150913,3687.5,3686.8,2.71234]
[1732958864802,1.5532,3687.4,3686.8,2.71234]
[1732958865006,4.26519,3687.4,3686.7,2.71245]
[1732958866402,2.71202,3687.3,3686.7,2.71245]
[1732958867921,4.26546,3687.0,3686.0,2.71294]
[1732958868212,4.26546,3687.0,3684.7,2.71388]
[1732958868213,1.6011,3686.5,3685.7,1.1135]
[1732958868412,1.6011,3686.5,3686.1,2.71283]
[1732958868577,1.6011,3686.5,3686.2,2.71279]
[1732958868974,1.6011,3686.5,3686.2,2.71275]
[1732958869199,1.6011,3686.9,3686.2,2.71275]
[1732958869531,1.6011,3686.9,3686.4,2.71261]
[1732958869666,1.6011,3687.3,3686.8,2.71232]
[1732958870319,1.6011,3687.3,3686.6,2.71251]
[1732958870613,1.6011,3687.3,3686.9,2.71229]
[1732958872122,1.6011,3687.3,3687.0,2.71221]
[1732958872278,0.03390348,3687.2,3687.0,2.71221]
[1732958872610,1.6011,3687.3,3687.0,2.71221]
[1732958873122,0.03390348,3687.2,3686.7,2.71239]
[1732958873522,4.81532162,3687.2,3686.5,2.71259]
[1732958874188,4.81532162,3687.2,3686.6,2.7125]
[1732958874387,2.10323162,3687.2,3686.6,2.7125]
[1732958874627,2.35506064,3687.2,3686.6,2.7125]
[1732958875514,5.06716064,3687.2,3686.6,2.7125]
[1732958875691,4.81533162,3687.2,3686.6,2.7125]
[1732958876509,0.25193802,3687.1,3686.6,2.7125]
[1732958876701,4.78142814,3687.2,3686.6,2.7125]
[1732958877485,0.25202223,3687.1,3686.6,2.7125]
[1732958878491,0.28592955,3687.0,3686.6,2.7125]
[1732958878713,4.78142814,3687.2,3686.6,2.7125]
[1732958878714,0.25202223,3687.1,3686.6,2.7125]
[1732958878887,0.25202223,3687.0,3686.6,2.7125]
[1732958879221,0.25215867,3687.1,3686.6,2.7125]
[1732958879425,0.25215867,3687.0,3686.6,2.7125]
[1732958879638,5.18509261,3687.2,3686.6,2.7125]
[1732958879933,0.25228709,3687.1,3686.8,2.71237]
[1732958880088,0.25228709,3687.1,3686.6,2.7125]
[1732958880432,0.25228709,3687.0,3686.7,2.71243]
[1732958880636,2.06932814,3687.2,3686.7,2.71242]
[1732958880843,0.25242163,3687.1,3686.7,2.71242]
[1732958881147,0.25242163,3687.0,3686.7,2.71242]
[1732958881346,2.06932814,3687.2,3686.7,2.71242]
[1732958881506,0.25240982,3687.1,3686.6,2.71251]
[1732958881699,0.25240982,3687.0,3686.9,2.71229]
[1732958882315,2.06932814,3687.2,3687.0,2.71217]
[1732958882600,0.25267543,3687.1,3686.1,1.1135]
[1732958882827,2.06932814,3687.2,3687.0,2.71223]
[1732958883142,0.25268542,3687.1,3687.0,2.71223]
[1732958883641,2.06932814,3687.2,3687.0,2.71223]
[1732958883850,2.00538069,3687.6,3687.3,2.71201]
[1732958884139,2.00539638,3687.9,3687.5,2.71186]
[1732958884298,0.25264008,3687.8,3687.5,2.71186]
[1732958884500,1.6011,3687.9,3687.7,2.7117]
[1732958884742,0.25257974,3687.8,3687.7,2.7117]
[1732958885315,0.25257974,3687.8,3687.4,2.71193]
[1732958885650,0.25257974,3687.7,3687.6,2.71179]
[1732958886161,1.6011,3687.9,3687.6,2.71179]
[1732958886310,0.25252688,3687.7,3687.6,2.71179]
[1732958886651,2.06932814,3688.0,3687.9,2.71157]
[1732958886947,1.6011,3688.2,3688.1,2.71142]
[1732958887155,0.25249455,3688.2,3688.1,2.71142]
[1732958887307,2.06932814,3688.4,3688.1,2.71142]
[1732958887519,0.28628671,3688.3,3687.7,2.7117]
[1732958887845,2.06932814,3688.0,3687.7,2.7117]
[1732958888049,1.88739043,3687.9,3687.3,2.712]
[1732958888252,0.25239355,3687.8,3687.3,2.712]
[1732958888425,0.25239355,3687.7,3687.3,2.712]
[1732958888629,1.63500042,3687.9,3687.1,2.71214]
[1732958888829,0.25234762,3687.8,3687.3,2.71198]
[1732958889025,0.25234762,3687.7,3687.3,2.71198]
[1732958889234,1.63500042,3687.9,3687.3,2.71198]
[1732958889435,0.25237607,3687.8,3687.3,2.71198]
[1732958889646,0.03390041,3687.7,3687.3,2.71198]
[1732958889813,0.2863124,3687.7,3687.3,2.71198]
[1732958890010,0.03390041,3687.7,3687.3,2.71198]
[1732958890255,0.03390041,3687.7,3687.1,2.71214]
[1732958890429,2.32173335,3687.6,3687.1,2.71214]
[1732958890628,2.06932814,3687.6,3687.1,2.71214]
[1732958890830,0.25239937,3687.5,3687.1,2.71214]
[1732958891054,2.06932814,3687.6,3687.1,2.71214]
[1732958891571,0.25234473,3687.5,3687.1,2.71214]
[1732958891892,2.06932814,3687.6,3687.1,2.71214]
[1732958892028,0.25235195,3687.5,3687.1,2.71214]
[1732958892229,2.06932814,3687.6,3687.1,2.71214]
[1732958892417,0.28625936,3687.5,3687.1,2.71214]
[1732958892614,2.06932814,3687.6,3687.1,2.71214]
[1732958892856,1.6418,3687.4,3686.7,2.71244]
[1732958893076,2.74592471,3687.3,3686.7,2.71244]
[1732958893217,0.25233267,3687.2,3686.7,2.71244]
[1732958893417,0.03390557,3687.1,3686.7,2.71244]
[1732958894637,0.28624454,3687.2,3686.7,2.71244]
[1732958894843,0.25233906,3687.1,3686.7,2.71244]
[1732958895047,0.28624474,3687.0,3686.7,2.71244]
[1732958895245,1.6418,3686.9,3686.1,2.71282]
[1732958895414,0.25235427,3686.8,3686.6,2.71251]
[1732958895622,1.6418,3686.9,3686.6,2.71251]
[1732958898240,0.25232278,3687.1,3686.7,1.1135]
[1732958898568,0.53702055,3687.7,3687.2,2.71203]
[1732958898735,0.25236456,3687.6,3687.2,2.71203]
[1732958899067,0.25238272,3687.5,3687.2,2.71203]
[1732958899268,0.53702055,3687.7,3687.2,2.71203]
[1732958899435,0.25240418,3687.6,3687.0,2.71223]
[1732958899633,0.25240418,3687.5,3687.2,2.71203]
[1732958899831,0.53702055,3687.7,3687.2,2.71203]
[1732958900030,0.53702055,3687.7,3687.4,2.71186]
[1732958900031,0.25243919,3687.6,3687.4,2.71186]
[1732958900370,1.6642,3687.8,3686.8,2.71237]
[1732958900567,0.25242799,3687.7,3686.9,0.382587]
[1732958900868,1.6642,3687.8,3686.9,0.382587]
[1732958900869,1.6642,3687.8,3687.4,2.71188]
[1732958901070,0.25242908,3687.7,3687.4,2.71188]
[1732958901246,1.6642,3687.8,3687.4,2.71188]
[1732958901442,0.25241552,3687.7,3687.4,2.71188]
[1732958901645,1.6642,3687.8,3687.4,2.71188]
[1732958901865,2.06932814,3688.0,3687.3,1.1135]
[1732958902047,0.25242381,3687.9,3687.6,2.71179]
[1732958902375,0.25242381,3687.8,3687.7,2.71166]
[1732958902547,0.25242381,3688.0,3687.7,2.71166]
[1732958902732,0.25242381,3687.9,3687.8,2.71164]
[1732958902933,1.6642,3688.1,3687.7,2.71166]
[1732958903171,0.25238176,3688.0,3687.9,2.71157]
[1732958903779,0.25238176,3688.0,3687.7,2.71166]
[1732958903780,0.28627702,3688.0,3687.7,2.71166]
[1732958903985,0.03389526,3688.0,3687.7,2.71166]
[1732958904191,0.03389526,3688.0,3687.3,3.82549]
[1732958904415,0.03389526,3688.0,3687.6,2.71178]
[1732958905086,0.25234292,3687.9,3687.6,2.71178]
[1732958905282,0.03389526,3688.0,3687.6,2.71178]
[1732958905503,1.6642,3688.1,3687.6,2.71178]
[1732958905781,0.25233185,3688.0,3687.6,2.71178]
[1732958905966,0.25233185,3687.9,3687.6,2.71178]
[1732958906141,1.6642,3688.1,3687.6,2.71178]
[1732958906348,0.25234034,3688.0,3687.6,2.71178]
[1732958906679,0.25234034,3687.9,3687.6,2.71178]
[1732958906880,4.37563,3688.1,3687.4,2.71189]
[1732958907180,2.32167909,3688.0,3687.4,2.71189]
[1732958907495,0.28624946,3687.9,3687.4,2.71189]
[1732958907647,0.28626422,3687.9,3687.4,2.71189]
[1732958907986,0.25236571,3687.8,3687.4,2.71189]
[1732958908159,0.03389849,3687.7,3687.4,2.71189]
[1732958908353,0.28626569,3687.9,3687.4,2.71189]
[1732958908566,0.25236721,3687.8,3687.4,2.71189]
[1732958908748,0.03389848,3687.7,3687.4,2.71189]
[1732958908944,0.25238872,3687.9,3687.2,2.71206]
[1732958909173,0.28628719,3687.8,3687.2,2.71206]
[1732958909361,0.03389847,3687.8,3687.2,2.71206]
[1732958909562,0.03389847,3687.8,3687.1,3.0]
[1732958909796,0.03389847,3687.8,3687.3,5.42394]
[1732958910283,0.03389848,3687.9,3687.3,5.42394]
[1732958910454,0.25241264,3687.8,3687.4,2.71193]
[1732958910684,0.03389846,3687.7,3687.4,2.71193]
[1732958910857,2.96397959,3687.9,3687.3,2.71195]
[1732958911104,0.25240957,3687.8,3687.3,2.71195]
[1732958911393,2.71188,3687.5,3686.8,5.71234]
[1732958911550,2.71206,3687.3,3686.7,2.71244]
[1732958911901,0.2862703,3687.2,3686.7,2.71244]
[1732958912190,1.6217,3687.3,3686.7,2.71239]
[1732958912389,0.25233951,3687.2,3686.7,2.71239]
[1732958912552,1.6217,3687.3,3686.7,2.51239]
[1732958912880,0.25233244,3687.2,3686.7,2.51239]
[1732958913088,1.6217,3687.3,3686.7,2.51239]
[1732958913294,0.2523234,3687.2,3686.7,2.51239]
[1732958913580,2.20753774,3687.3,3686.7,2.51239]
[1732958913780,0.03390476,3687.1,3686.7,2.51239]
[1732958914092,2.17363297,3687.3,3686.7,2.51239]
[1732958914253,0.78116166,3687.2,3686.7,2.51239]
[1732958914457,0.03390476,3687.1,3686.7,2.51239]
[1732958914663,0.5289365,3687.2,3686.9,2.71229]
[1732958914895,2.17363297,3687.3,3686.9,2.71229]
[1732958916401,3.69102814,3687.6,3687.0,2.71217]
[1732958917304,0.03390216,3687.5,3687.0,2.71217]
[1732958917796,0.03390216,3687.5,3686.8,2.71235]
[1732958917998,2.74577216,3687.5,3686.8,2.71235]
[1732958918188,2.71187,3687.5,3686.8,2.71235]
[1732958918576,0.28612188,3687.4,3686.8,2.71235]
[1732958919097,0.25221852,3687.4,3687.0,2.71219]
[1732958919302,0.03390216,3687.3,3686.8,2.71235]
[1732958919503,0.03390216,3687.3,3686.4,0.55]
[1732958919667,0.03390216,3687.3,3686.9,2.71228]
[1732958919866,2.71187,3687.5,3686.7,2.71244]
[1732958920664,0.25213794,3687.4,3686.7,2.71244]
[1732958920891,0.25213794,3687.3,3686.7,2.71244]
[1732958921095,2.71196,3687.4,3686.7,2.71244]
[1732958921300,0.25213558,3687.3,3686.7,2.71244]
[1732958921497,2.71196,3687.4,3686.7,2.71244]
[1732958921701,0.25213564,3687.3,3686.7,2.71244]
[1732958921880,2.71196,3687.4,3686.7,2.71244]